bitfinex/quotes_ETHUSD_20250804
["timestamp","ask_amount","ask_price","bid_price","bid_amount"]
[1754300350762,0.1408,3560.8,3560.5,2.80859429]
[1754300350932,0.55,3561.0,3560.9,2.8082788]
[1754300351131,0.55,3561.0,3560.6,2.80845464]
[1754300351132,0.1408,3560.9,3560.8,2.80832848]
[1754300352449,0.1408,3560.9,3560.7,2.80841005]
[1754300352669,4.81,3560.8,3560.7,2.80841005]
[1754300352986,4.81,3560.8,3560.5,2.80859429]
[1754300353282,4.81,3560.8,3560.6,2.80851262]
[1754300355569,0.58510545,3560.7,3560.4,0.002]
[1754300355878,0.6908,3560.5,3560.4,0.002]
[1754300356982,0.6908,3560.5,3560.4,2.81067318]
[1754300357765,0.6908,3560.5,3560.4,0.002]
[1754300358672,0.6908,3560.5,3560.4,2.81067318]
[1754300358897,0.6908,3560.5,3560.4,0.002]
[1754300360279,0.6908,3560.5,3560.4,2.81067318]
[1754300361909,0.55,3561.0,3560.6,2.80845589]
[1754300362079,4.4008,3560.9,3560.7,2.80838125]
[1754300362267,0.55,3560.8,3560.7,2.80838125]
[1754300362471,0.55,3560.8,3560.6,2.80847961]
[1754300362670,4.26,3560.7,3560.6,2.80847961]
[1754300365984,0.55,3560.8,3560.6,2.80847961]
[1754300366185,4.26,3560.7,3560.6,2.80847961]
[1754300369208,6.751,3561.1,3561.0,2.80819994]
[1754300369380,11.561,3561.1,3561.0,2.80819994]
[1754300370109,0.001,3561.1,3561.0,3.01717007]
[1754300370313,4.261,3561.1,3561.0,6.15797007]
[1754300370531,4.261,3561.1,3561.0,8.21419709]
[1754300374531,0.001,3561.1,3561.0,8.21419709]
[1754300386995,0.001,3561.1,3561.0,8.21619709]
[1754300394788,0.001,3561.5,3561.4,17.40390052]
[1754300394989,0.001,3561.5,3561.4,17.54390052]
[1754300395205,0.001,3561.5,3561.4,18.59225629]
[1754300398439,0.001,3561.7,3561.6,5.80772686]
[1754300398740,1e-08,3562.2,3562.1,14.40334874]
[1754300398939,1e-08,3562.2,3562.1,17.40334874]
[1754300399113,1e-08,3562.2,3562.1,17.54334874]
[1754300399314,1e-08,3562.2,3562.1,18.10549781]
[1754300414246,1e-08,3562.2,3562.1,6.50948182]
[1754300414448,1e-08,3562.2,3562.1,5.94733275]
[1754300421679,1e-08,3562.2,3562.1,17.54334874]
[1754300427127,1e-08,3562.2,3562.1,5.94733275]
[1754300428315,1e-08,3562.2,3562.1,2.94733275]
[1754300428516,1e-08,3562.2,3562.1,0.14]
[1754300428884,0.55,3562.1,3561.6,2.80767697]
[1754300429119,0.55,3562.1,3561.6,0.14]
[1754300429320,0.55,3562.1,3561.7,2.80759357]
[1754300430114,0.55,3562.1,3561.6,2.94769928]
[1754300430322,0.55,3562.1,3561.7,2.80764313]
[1754300430818,0.55,3562.1,3561.7,2.80762659]
[1754300431127,0.55,3562.1,3561.8,2.80756393]
[1754300431721,0.55,3562.1,3561.7,2.80763003]
[1754300431921,0.55,3562.1,3561.8,2.80756908]
[1754300432124,4.256,3562.0,3561.8,2.80756908]
[1754300432321,4.256,3562.0,3561.7,2.8076238]
[1754300433025,4.256,3562.0,3561.6,0.142]
[1754300433206,4.256,3562.0,3561.6,0.002]
[1754300433207,0.55,3561.9,3561.6,0.002]
[1754300433519,0.69,3561.9,3561.6,0.002]
[1754300434389,0.55,3561.7,3561.6,0.002]
[1754300435128,0.69,3561.7,3561.6,0.002]
[1754300435823,4.946,3561.7,3561.6,0.002]
[1754300437421,0.69,3561.7,3561.6,0.002]
[1754300437590,4.947,3561.7,3561.6,0.002]
[1754300440396,4.947,3561.7,3561.6,2.80972686]
[1754300441833,1e-08,3562.2,3561.8,2.80751145]
[1754300441834,0.55000001,3562.2,3561.8,2.80751145]
[1754300442046,0.14,3562.0,3561.8,2.80754863]
[1754300442249,0.55,3562.0,3561.9,2.80749038]
[1754300443722,0.55,3562.0,3561.8,2.80754559]
[1754300444125,0.55,3562.0,3561.6,2.80971605]
[1754300444126,0.55,3562.0,3561.9,2.80749038]
[1754300445157,0.55,3562.0,3561.7,2.80763585]
[1754300445158,4.257,3562.1,3562.0,2.80741156]
[1754300446232,1e-08,3562.2,3562.1,2.80733275]
[1754300446625,4.25700001,3562.2,3562.1,3.36880718]
[1754300447249,4.25700001,3562.2,3562.1,14.96482317]
[1754300448641,4.25700001,3562.2,3562.1,17.96482317]
[1754300449647,1e-08,3562.2,3562.1,17.96482317]
[1754300461787,1e-08,3562.2,3562.1,6.36880718]
[1754300469201,1.83317959,3563.3,3562.5,2.80701754]
[1754300469511,4.255,3563.1,3562.5,18.26444566]
[1754300469702,4.255,3563.1,3563.0,5.80662363]
[1754300469879,4.255,3563.1,3563.0,17.40263962]
[1754300470079,4.255,3563.1,3563.0,17.54263962]
[1754300470488,1.83317959,3563.3,3563.2,2.80646609]
[1754300470688,1.83317959,3563.3,3563.2,7.98137666]
[1754300470890,1.83317959,3563.3,3563.2,8.19514853]
[1754300472208,1e-08,3563.6,3563.5,2.80622983]
[1754300472366,1e-08,3563.6,3563.5,2.82670237]
[1754300472569,1e-08,3563.6,3563.5,3.71663899]
[1754300472780,1e-08,3563.6,3563.5,6.71663899]
[1754300474904,1e-08,3563.6,3563.5,10.97163899]
[1754300479309,1e-08,3563.6,3563.5,6.71663899]
[1754300479632,1e-08,3563.6,3563.5,5.94622983]
[1754300480667,1e-08,3563.6,3563.5,2.94622983]
[1754300481631,1e-08,3563.6,3563.5,0.14]
[1754300481831,1e-08,3563.6,3563.5,2.94622983]
[1754300487010,1e-08,3563.6,3563.5,5.94622983]
[1754300487250,1e-08,3563.6,3563.5,8.00246323]
[1754300487667,1e-08,3563.6,3563.5,5.94622983]
[1754300491752,1e-08,3563.6,3563.5,5.93503165]
[1754300496534,1e-08,3563.6,3563.5,5.94622983]
[1754300501270,1e-08,3563.6,3563.5,6.05865483]
[1754300503988,1e-08,3563.6,3563.5,5.94622983]
[1754300508796,1e-08,3563.6,3563.3,0.002]
[1754300508999,4.252,3563.5,3563.4,2.80630858]
[1754300509198,4.252,3563.5,3563.4,5.80630858]
[1754300515771,1e-08,3563.6,3563.5,2.80622983]
[1754300516302,4.25200001,3563.6,3563.5,2.94622983]
[1754300517404,1e-08,3563.6,3563.5,2.94622983]
[1754300517707,4.25200001,3563.6,3563.5,2.94622983]
[1754300519676,4.25200001,3563.6,3563.5,0.14]
[1754300520011,4.67730001,3563.6,3563.4,5.80827412]
[1754300520308,4.67730001,3563.6,3563.4,0.002]
[1754300521006,0.14,3563.5,3563.4,0.002]
[1754300521306,0.62183,3563.5,3563.4,0.002]
[1754300521504,0.65690787,3563.5,3563.4,0.002]
[1754300521708,0.62183,3563.5,3563.4,0.002]
[1754300522076,0.65690787,3563.5,3563.4,0.002]
[1754300522636,4.0131377,3563.5,3563.4,0.002]
[1754300522908,5.7021377,3563.5,3563.4,0.002]
[1754300523087,38.7021377,3563.5,3563.4,0.002]
[1754300523294,38.66705983,3563.5,3563.4,0.002]
[1754300533121,38.77957383,3563.5,3563.4,0.002]
[1754300533309,38.77957383,3563.5,3563.4,1e-08]
[1754300533507,38.77957383,3563.5,3563.3,1e-08]
[1754300533508,8.04530858,3563.4,3563.3,1e-08]
[1754300533824,35.04554486,3563.1,3563.0,1e-08]
[1754300534025,35.04554486,3563.1,3562.9,0.002]
[1754300534026,8.04562363,3563.0,3562.9,1e-08]
[1754300534319,45.23562363,3563.0,3562.9,1e-08]
[1754300536594,48.93962363,3563.0,3562.9,1e-08]
[1754300536804,49.48962363,3563.0,3562.9,1e-08]
[1754300537097,52.3578707,3563.0,3562.9,1e-08]
[1754300538616,48.1038707,3563.0,3562.9,1e-08]
[1754300538793,52.3578707,3563.0,3562.9,1e-08]
[1754300544930,3.35693875,3562.6,3562.5,0.002]
[1754300545102,14.69602548,3562.6,3562.5,0.002]
[1754300545302,62.43891924,3562.6,3562.5,0.002]
[1754300545503,62.57891924,3562.6,3562.5,0.002]
[1754300545945,62.86021924,3562.6,3562.5,0.002]
[1754300546242,62.57891924,3562.6,3562.5,0.002]
[1754300553351,5.04633275,3562.1,3562.0,0.002]
[1754300553557,24.55427039,3562.1,3562.0,0.002]
[1754300553859,61.56917874,3562.1,3562.0,0.002]
[1754300554230,61.56917874,3562.1,3562.0,1e-08]
[1754300554820,61.68174274,3562.1,3562.0,1e-08]
[1754300559142,63.22266683,3562.1,3562.0,1e-08]
[1754300566944,56.17266683,3562.1,3562.0,1e-08]
[1754300570166,5.04712108,3561.1,3561.0,0.002]
[1754300570366,16.22702259,3561.1,3561.0,0.002]
[1754300570669,16.19192108,3561.1,3561.0,0.002]
[1754300572463,46.19192108,3561.1,3561.0,0.002]
[1754300572628,49.19192108,3561.1,3561.0,0.002]
[1754300572833,52.06016815,3561.1,3561.0,0.002]
[1754300573053,52.17275515,3561.1,3561.0,0.002]
[1754300575039,52.17375515,3561.1,3561.0,0.002]
[1754300575246,47.25516815,3561.1,3561.0,0.002]
[1754300575445,51.51116815,3561.1,3561.0,0.002]
[1754300575644,52.06116815,3561.1,3561.0,0.002]
[1754300577966,52.17375115,3561.1,3561.0,0.002]
[1754300578373,52.06116815,3561.1,3561.0,0.002]
[1754300579743,52.17375115,3561.1,3561.0,0.002]
[1754300580473,52.06116815,3561.1,3561.0,0.002]
[1754300581743,52.17375215,3561.1,3561.0,0.002]
[1754300585361,47.91775215,3561.1,3561.0,0.002]
[1754300585572,13.95392108,3561.1,3561.0,0.002]
[1754300586356,14.50392108,3561.1,3561.0,0.002]
[1754300586558,9.69792108,3561.1,3561.0,0.002]
[1754300586860,13.95392108,3561.1,3561.0,0.002]
[1754300587171,14.50392108,3561.1,3561.0,0.002]
[1754300589103,10.24792108,3561.1,3561.0,0.002]
[1754300589404,14.50392108,3561.1,3561.0,0.002]
[1754300589887,7.4398,3561.1,3561.0,0.002]
[1754300590098,11.6958,3561.1,3561.0,0.002]
[1754300592274,14.50392108,3561.1,3561.0,0.002]
[1754300592468,16.23511752,3561.1,3561.0,0.002]
[1754300592971,20.92411752,3561.1,3561.0,0.002]
[1754300593172,50.92411752,3561.1,3560.6,0.002]
[1754300593397,3.49923654,3560.7,3560.6,0.002]
[1754300593605,7.78934199,3560.7,3560.6,0.002]
[1754300593907,10.14250736,3560.7,3560.6,0.002]
[1754300601335,11.83150736,3560.7,3560.6,0.002]
[1754300602335,18.88150736,3560.7,3560.6,0.002]
[1754300611643,8.04759429,3560.5,3560.4,0.002]
[1754300611843,24.04041028,3560.5,3560.4,0.002]
[1754300612046,54.76398459,3560.5,3560.4,0.002]
[1754300612923,54.87658959,3560.5,3560.4,0.002]
[1754300613646,54.87658959,3560.5,3560.4,1e-08]
[1754300613824,50.62058959,3560.5,3560.4,1e-08]
[1754300614024,54.87658959,3560.5,3560.4,1e-08]
[1754300614926,43.2805736,3560.5,3560.4,1e-08]
[1754300616317,50.3305736,3560.5,3560.4,1e-08]
[1754300616735,19.5271686,3560.5,3560.4,1e-08]
[1754300616943,19.6679686,3560.5,3560.4,1e-08]
[1754300617146,20.2179686,3560.5,3560.4,1e-08]
[1754300618236,50.2179686,3560.5,3560.4,1e-08]
[1754300621554,23.24539429,3560.5,3560.4,1e-08]
[1754300628562,23.24439429,3560.5,3560.4,1e-08]
[1754300629559,16.19439429,3560.5,3560.4,1e-08]
[1754300632961,11.93939429,3560.5,3560.4,1e-08]
[1754300633141,16.19439429,3560.5,3560.4,1e-08]
[1754300633461,11.93939429,3560.5,3560.4,1e-08]
[1754300633628,16.19439429,3560.5,3560.4,1e-08]
[1754300634631,18.33360446,3560.5,3560.4,1e-08]
[1754300637852,48.33360446,3560.5,3560.4,1e-08]
[1754300644370,55.38360446,3560.5,3560.4,1e-08]
[1754300647060,25.38360446,3560.5,3560.4,1e-08]
[1754300647846,16.75039429,3560.5,3560.4,1e-08]
[1754300648060,6.8918,3560.5,3560.4,1e-08]
[1754300648462,11.1468,3560.5,3560.4,1e-08]
[1754300648692,11.6968,3560.5,3560.4,1e-08]
[1754300649180,14.50539429,3560.5,3560.4,1e-08]
[1754300649386,16.23688449,3560.5,3560.4,1e-08]
[1754300649552,47.92588449,3560.5,3560.4,1e-08]
[1754300649897,47.92488449,3560.5,3560.4,1e-08]
[1754300650246,16.09508449,3560.5,3560.4,1e-08]
[1754300650552,14.36359429,3560.5,3560.4,1e-08]
[1754300651243,10.10959429,3560.5,3560.4,1e-08]
[1754300651446,14.36359429,3560.5,3560.4,1e-08]
[1754300652980,4.256,3560.5,3560.4,2.80867319]
[1754300653188,0.001,3560.7,3560.4,1e-08]
[1754300653407,4.256,3560.6,3560.5,2.80858163]
[1754300653570,4.256,3560.6,3560.5,3.37050809]
[1754300654274,4.256,3560.6,3560.5,3.58056195]
[1754300654475,0.001,3560.7,3560.6,2.80851541]
[1754300654774,4.262,3560.7,3560.5,3.58055452]
[1754300655084,0.001,3560.7,3560.6,14.4045314]
[1754300655257,4.262,3560.7,3560.6,18.92218257]
[1754300656163,0.001,3560.7,3560.5,0.77198032]
[1754300656369,4.263,3560.6,3560.5,0.21005386]
[1754300656553,4.263,3560.6,3560.4,2.80864265]
[1754300656759,0.001,3560.7,3560.4,1e-08]
[1754300656962,4.263,3560.6,3560.4,2.80865733]
[1754300657156,0.001,3560.7,3560.6,2.80851541]
[1754300657373,4.268,3560.7,3560.6,18.54710918]
[1754300657785,4.268,3560.7,3560.6,6.95109319]
[1754300658091,0.001,3560.7,3560.6,6.95109319]
[1754300658287,4.269,3560.7,3560.6,6.95109319]
[1754300659193,0.001,3560.9,3560.8,2.80835767]
[1754300659392,0.001,3560.9,3560.8,8.26504622]
[1754300659896,0.001,3560.9,3560.8,8.37756922]
[1754300660277,0.001,3560.9,3560.8,8.51836922]
[1754300661397,0.001,3560.9,3560.8,5.71001155]
[1754300661609,0.001,3560.9,3560.8,0.1408]
[1754300661988,0.001,3560.9,3560.5,3.02000073]
[1754300661989,0.1418,3560.9,3560.5,3.21141861]
[1754300662215,0.1408,3560.6,3560.4,3.00000001]
[1754300662376,4.284,3560.5,3560.4,3.00000001]
[1754300662574,4.284,3560.5,3560.4,1e-08]
[1754300662779,4.284,3560.5,3560.4,0.67976972]
[1754300663002,4.284,3560.5,3560.4,1e-08]
[1754300663586,7.09259429,3560.5,3560.4,1e-08]
[1754300663785,7.64259429,3560.5,3560.4,1e-08]
[1754300664814,7.23439429,3560.5,3560.4,1e-08]
[1754300665025,7.78439429,3560.5,3560.4,1e-08]
[1754300665188,4.9758,3560.5,3560.4,1e-08]
[1754300665530,4.4258,3560.5,3560.4,1e-08]
[1754300666190,4.4268,3560.5,3560.4,1e-08]
[1754300667105,7.23539429,3560.5,3560.4,1e-08]
[1754300667416,4.4268,3560.5,3560.4,1e-08]
[1754300668340,8.22807429,3560.5,3560.4,1e-08]
[1754300677821,14.53239429,3560.5,3560.4,1e-08]
[1754300681118,44.39159429,3560.5,3560.4,1e-08]
[1754300681515,49.08059429,3560.5,3560.4,1e-08]
[1754300687658,17.39159429,3560.5,3560.4,1e-08]
[1754300688046,17.38959429,3560.5,3560.4,1e-08]
[1754300688349,20.25784136,3560.5,3560.4,1e-08]
[1754300690882,21.94684136,3560.5,3560.4,1e-08]
[1754300691074,52.08764136,3560.5,3560.4,1e-08]
[1754300692697,3.35914658,3559.8,3558.9,0.002]
[1754300692888,9.90047421,3559.8,3558.9,0.002]
[1754300693090,10.00615988,3559.8,3558.9,0.002]
[1754300698093,40.00615988,3559.8,3558.9,0.002]
[1754300701620,3.35977802,3559.0,3558.9,0.002]
[1754300701826,7.77857802,3559.0,3558.9,0.002]
[1754300702389,9.51260505,3559.0,3558.9,0.002]
[1754300702986,7.77857802,3559.0,3558.9,0.002]
[1754300703722,3.50057802,3559.0,3558.9,0.002]
[1754300703898,0.1408,3559.0,3558.9,0.002]
[1754300704220,4.4208,3559.0,3558.9,0.002]
[1754300705885,0.1408,3559.0,3558.9,0.002]
[1754300706201,4.281,3559.0,3558.9,2.81185697]
[1754300706400,4.281,3559.0,3558.9,4.54771869]
[1754300706602,0.1408,3559.2,3559.0,3.0]
[1754300706830,6.752,3560.0,3559.0,3.0]
[1754300706831,4.281,3559.1,3559.0,17.40579401]
[1754300706982,0.1408,3559.6,3559.0,17.40579401]
[1754300706983,0.1408,3559.6,3559.4,3.0]
[1754300707183,4.282,3559.5,3559.4,3.0]
[1754300707420,4.282,3559.5,3559.4,3.67138179]
[1754300707819,6.752,3560.0,3559.5,2.80938334]
[1754300708126,0.1408,3559.8,3559.5,2.80938334]
[1754300708419,4.282,3559.7,3559.4,3.67135777]
[1754300708943,4.282,3559.7,3559.5,2.80937329]
[1754300709103,4.282,3559.7,3559.6,0.38120928]
[1754300709499,4.282,3559.7,3559.6,3.19051369]
[1754300709721,6.752,3560.0,3559.9,2.80906767]
[1754300709917,6.752,3560.0,3559.6,0.38120928]
[1754300709918,11.033,3560.0,3559.6,0.38120928]
[1754300710142,11.033,3560.0,3559.7,3.0]
[1754300710344,11.033,3560.0,3559.8,0.61904624]
[1754300710854,11.1738,3560.0,3559.6,0.38120928]
[1754300711047,0.1408,3559.8,3559.3,5.95027891]
[1754300711333,4.284,3559.7,3559.3,5.95027891]
[1754300711837,4.284,3559.7,3559.4,2.80945945]
[1754300712038,4.284,3559.7,3559.5,2.80937842]
[1754300712204,4.284,3559.7,3559.6,0.57597021]
[1754300712568,4.284,3559.7,3559.3,0.1408]
[1754300713238,4.284,3559.7,3559.4,3.0]
[1754300713447,4.284,3559.7,3559.4,2.80945985]
[1754300713860,4.284,3559.7,3559.3,0.1408]
[1754300714216,4.284,3559.7,3559.3,3.1408]
[1754300714521,4.284,3559.7,3559.4,0.59503568]
[1754300715222,0.1408,3559.6,3559.4,0.59503568]
[1754300715412,4.282,3559.5,3559.0,0.002]
[1754300715608,0.1408,3559.4,3559.0,0.002]
[1754300715850,4.282,3559.3,3559.0,0.002]
[1754300718730,4.282,3559.3,3559.1,3.0]
[1754300718928,4.282,3559.3,3559.1,3.59545775]
[1754300719310,4.282,3559.3,3559.1,3.40511538]
[1754300719513,6.752,3560.0,3559.3,2.80954103]
[1754300719726,0.1408,3559.6,3559.4,3.0]
[1754300719927,4.28,3559.5,3559.4,3.0]
[1754300720137,4.28,3559.5,3559.4,3.9214672]
[1754300721374,4.28,3559.5,3559.4,0.9214672]
[1754300723126,4.28,3559.5,3559.4,3.9214672]
[1754300723624,4.28,3559.5,3559.4,0.9214672]
[1754300724977,4.28,3559.5,3559.1,0.73625775]
[1754300725269,4.28,3559.5,3559.0,0.002]
[1754300725472,0.1408,3559.4,3559.0,3.002]
[1754300727320,0.1408,3559.4,3559.0,5.81176585]
[1754300727528,0.1408,3559.4,3559.1,3.0]
[1754300728064,0.1408,3559.4,3559.0,3.002]
[1754300728360,0.1408,3559.4,3559.1,0.59546341]
[1754300728579,0.1408,3559.4,3559.0,2.81177156]
[1754300729248,0.1408,3559.4,3559.1,3.0]
[1754300729562,4.28,3559.5,3559.1,2.80969908]
[1754300729767,4.4208,3559.5,3559.1,2.80969908]
[1754300730061,0.1408,3559.5,3559.2,2.80958746]
[1754300730265,4.276,3559.4,3559.3,0.862136]
[1754300730466,0.1408,3559.6,3559.3,3.6922123]
[1754300730763,4.276,3559.4,3559.3,0.862136]
[1754300731486,4.276,3559.4,3559.3,3.6716772]
[1754300731778,4.276,3559.4,3559.3,6.6716772]
[1754300731952,4.276,3559.4,3559.3,6.8124772]
[1754300733271,4.276,3559.4,3559.3,4.002936]
[1754300733654,4.276,3559.4,3559.3,3.0]
[1754300735769,4.276,3559.4,3559.0,3.002]
[1754300735940,4.276,3559.4,3559.0,5.81176754]
[1754300736143,4.276,3559.4,3559.0,3.002]
[1754300736344,0.1408,3559.5,3559.0,0.002]
[1754300736576,4.275,3559.4,3559.0,0.002]
[1754300736949,4.275,3559.4,3559.0,2.81176282]
[1754300737373,0.1408,3559.5,3559.0,2.81176282]
[1754300737581,4.274,3559.3,3559.0,2.81176282]
[1754300737779,4.274,3559.3,3559.0,3.6882124]
[1754300738092,4.274,3559.3,3559.0,0.87844958]
[1754300738381,0.1408,3559.5,3559.0,0.87844958]
[1754300738593,4.274,3559.4,3559.0,2.81176584]
[1754300739790,4.274,3559.4,3559.0,0.002]
[1754300740293,0.1408,3559.5,3559.0,0.002]
[1754300740496,4.273,3559.4,3559.0,0.002]
[1754300741474,0.1408,3559.1,3559.0,0.002]
[1754300744097,4.272,3559.1,3559.0,0.28339196]
[1754300744600,4.272,3559.1,3559.0,3.09316998]
[1754300746906,4.272,3559.1,3559.0,0.28339196]
[1754300747111,4.272,3559.1,3559.0,0.002]
[1754300747409,4.272,3559.1,3559.0,2.81177802]
[1754300748808,4.272,3559.1,3559.0,5.81177802]
[1754300750317,4.272,3559.1,3559.0,3.002]
[1754300750814,4.272,3559.1,3559.0,5.81177802]
[1754300751001,4.272,3559.1,3559.0,5.03805207]
[1754300752914,4.272,3559.1,3559.0,7.84783009]
[1754300753102,4.272,3559.1,3559.0,5.03805207]
[1754300753412,4.272,3559.1,3559.0,7.84783009]
[1754300757318,4.272,3559.1,3559.0,5.03805207]
[1754300757489,4.272,3559.1,3559.0,7.84783009]
[1754300757691,4.272,3559.1,3559.0,5.03805207]
[1754300757929,4.272,3559.1,3559.0,3.002]
[1754300764906,4.4128,3559.1,3559.0,3.002]
[1754300767838,7.22249908,3559.1,3559.0,0.002]
[1754300768646,4.4128,3559.1,3559.0,0.002]
[1754300769816,7.22249908,3559.1,3559.0,0.002]
[1754300770017,4.4128,3559.1,3559.0,0.002]
[1754300770221,7.22249908,3559.1,3559.0,0.002]
[1754300770543,4.4128,3559.1,3559.0,0.002]
[1754300771752,8.81081425,3559.1,3559.0,0.002]
[1754300771911,8.77569302,3559.1,3559.0,0.002]
[1754300775250,15.82569302,3559.1,3559.0,0.002]
[1754300778721,48.82569302,3559.1,3559.0,0.002]
[1754300781668,3.35977802,3559.0,3558.9,1e-08]
[1754300781850,46.31314731,3559.0,3558.9,1e-08]
[1754300782026,47.96702509,3559.0,3558.9,1e-08]
[1754300783357,49.86522977,3559.0,3558.9,1e-08]
[1754300783854,2.81124388,3557.2,3557.0,0.2141195]
[1754300784056,7.07528254,3557.1,3556.3,0.002]
[1754300784219,0.1408,3556.8,3556.3,0.1428]
[1754300784421,4.266,3556.7,3556.3,0.1428]
[1754300785146,4.266,3556.7,3556.3,0.35130736]
[1754300785345,4.266,3556.7,3556.4,0.61633734]
[1754300786238,4.266,3556.7,3556.3,0.1428]
[1754300787945,4.266,3556.7,3556.3,0.35164516]
[1754300788451,4.266,3556.7,3556.3,0.1428]
[1754300788663,0.1408,3556.8,3556.3,0.1428]
[1754300788827,4.265,3556.6,3556.3,0.1428]
[1754300789030,4.265,3556.6,3556.4,0.59548416]
[1754300789779,0.1408,3556.8,3556.4,0.59548416]
[1754300789924,4.264,3556.7,3556.4,0.59548416]
[1754300790124,4.264,3556.7,3556.3,0.002]
[1754300790329,0.1408,3556.6,3556.3,0.002]
[1754300790956,0.1408,3556.6,3556.3,0.20964175]
[1754300791469,0.1408,3556.6,3556.3,0.002]
[1754300791965,0.1408,3556.6,3556.3,3.002]
[1754300792266,0.1408,3556.6,3556.3,5.03828363]
[1754300793370,4.264,3556.5,3556.3,5.06418095]
[1754300793959,6.754,3557.6,3556.4,11.59601599]
[1754300794137,0.1408,3557.2,3556.7,0.1408]
[1754300794331,4.269,3557.1,3556.7,0.1408]
[1754300794670,4.269,3557.1,3556.5,5.8116963]
[1754300794968,0.1408,3557.0,3556.5,7.58294453]
[1754300795195,0.1408,3557.0,3556.5,7.58298391]
[1754300795343,0.1408,3557.0,3556.6,2.81166913]
[1754300795670,0.1408,3557.0,3556.6,2.81162069]
[1754300795834,0.1408,3557.0,3556.5,7.58296677]
[1754300796247,0.1408,3557.0,3556.6,6.87275913]
[1754300796462,0.1408,3557.0,3556.7,5.81153298]
[1754300796672,4.269,3556.9,3556.7,5.81153298]
[1754300797166,0.1408,3557.0,3556.8,2.8115006]
[1754300797365,4.269,3556.9,3556.8,5.81151596]
[1754300797564,0.1408,3557.2,3556.9,5.81138293]
[1754300797874,4.269,3557.1,3556.9,5.81138293]
[1754300798380,4.269,3557.1,3557.0,5.81135788]
[1754300798747,4.269,3557.1,3557.0,3.0]
[1754300802276,7.08035185,3557.1,3556.5,0.002]
[1754300802577,0.1408,3556.8,3556.5,0.002]
[1754300802877,4.268,3556.7,3556.5,0.002]
[1754300803179,4.268,3556.7,3556.5,2.81372724]
[1754300803538,9.56489779,3557.6,3556.5,2.81373544]
[1754300803539,9.56494023,3557.6,3556.5,2.81373544]
[1754300803745,0.1408,3557.0,3556.8,2.81149457]
[1754300804058,0.1408,3557.0,3556.9,3.0]
[1754300804251,4.4088,3557.0,3556.8,1.73619763]
[1754300804492,4.4088,3557.0,3556.7,3.0]
[1754300804844,4.4088,3557.0,3556.5,0.1428]
[1754300805057,4.4088,3557.0,3556.6,3.0]
[1754300805258,4.4088,3557.0,3556.5,0.1428]
[1754300805460,0.1408,3556.8,3556.5,0.002]
[1754300807295,0.1408,3556.8,3556.6,3.0]
[1754300808080,0.1408,3556.8,3556.5,0.002]
[1754300808262,3.36167407,3556.6,3556.5,0.002]
[1754300808460,7.63167407,3556.6,3556.5,0.002]
[1754300809057,19.22769006,3556.6,3556.5,0.002]
[1754300810562,3.36183218,3556.4,3556.3,0.002]
[1754300810770,2.81214848,3556.0,3555.9,0.002]
[1754300810987,18.67816447,3556.0,3555.9,0.002]
[1754300812066,7.08214848,3556.0,3555.9,0.002]
[1754300812377,19.22816447,3556.0,3555.9,0.002]
[1754300812555,21.3823032,3556.0,3555.9,0.002]
[1754300812956,22.7905476,3556.0,3555.9,0.002]
[1754300813363,11.19453161,3556.0,3555.9,0.002]
[1754300813552,9.78628721,3556.0,3555.9,0.002]
[1754300813747,11.18362213,3556.0,3555.9,0.002]
[1754300814184,22.77963812,3556.0,3555.9,0.002]
[1754300815776,11.18362213,3556.0,3555.9,0.002]
[1754300816108,9.0294834,3556.0,3555.9,0.002]
[1754300816875,20.62549939,3556.0,3555.9,1e-08]
[1754300818723,20.76629939,3556.0,3555.9,1e-08]
[1754300819076,4.9002834,3556.0,3555.9,1e-08]
[1754300819424,9.1722834,3556.0,3555.9,1e-08]
[1754300819607,11.53031931,3556.0,3555.9,1e-08]
[1754300820980,5.81013492,3556.0,3555.9,1e-08]
[1754300821424,5.66933492,3556.0,3555.9,1e-08]
[1754300823531,5.81013492,3556.0,3555.9,1e-08]
[1754300824132,4.4128,3556.0,3555.9,1e-08]
[1754300825145,4.272,3556.0,3555.9,5.95302757]
[1754300825297,4.272,3556.0,3555.9,6.82956184]
[1754300826447,0.1408,3556.5,3556.4,2.81183218]
[1754300826659,4.4168,3556.5,3556.4,2.81183218]
[1754300826968,4.276,3556.5,3556.4,3.3742074]
[1754300828859,4.276,3556.5,3556.4,6.5150074]
[1754300830232,4.276,3556.5,3556.4,3.70317522]
[1754300830463,4.276,3556.5,3556.1,0.1408]
[1754300831137,4.276,3556.5,3556.2,3.0]
[1754300831731,4.276,3556.5,3555.9,1e-08]
[1754300831948,0.1408,3556.3,3555.9,1e-08]
[1754300832161,4.276,3556.2,3556.1,5.8120694]
[1754300832364,4.276,3556.2,3556.1,6.68857906]
[1754300833067,4.276,3556.2,3556.1,6.82937906]
[1754300833574,4.276,3556.2,3556.1,4.01730966]
[1754300833735,4.276,3556.2,3555.9,1e-08]
[1754300835549,0.1408,3556.0,3555.9,1e-08]
[1754300837994,11.73681599,3556.0,3555.9,1e-08]
[1754300838146,14.95816447,3556.0,3555.9,1e-08]
[1754300841073,14.95916447,3556.0,3555.9,1e-08]
[1754300841841,17.16389565,3556.0,3555.9,1e-08]
[1754300842242,5.56787966,3556.0,3555.9,1e-08]
[1754300842777,3.36314848,3556.0,3555.9,1e-08]
[1754300843080,2.81314848,3556.0,3555.9,1e-08]
[1754300844385,0.001,3556.0,3555.9,1e-08]